bitfinex/quotes_ETHUSD_20241215
["timestamp","ask_amount","ask_price","bid_price","bid_amount"]
[1734238180770,1.07626758,3891.4,3890.9,1.27847431]
[1734238180943,0.89050494,3891.3,3890.9,1.27847431]
[1734238181151,1.07626758,3891.4,3890.9,1.27847431]
[1734238181328,0.89044582,3891.3,3890.9,1.27847431]
[1734238181530,1.07626758,3891.4,3890.9,1.27847431]
[1734238181730,0.89042654,3891.3,3890.9,1.27847431]
[1734238181946,1.07626758,3891.4,3890.9,1.27847431]
[1734238182179,2.22609382,3891.3,3890.9,1.27847431]
[1734238182340,0.89043753,3891.2,3890.9,1.27847431]
[1734238182532,0.7527,3891.3,3890.7,1.27847431]
[1734238182734,0.89035321,3891.2,3890.5,1.27847431]
[1734238182956,0.89035321,3891.1,3890.7,1.27847431]
[1734238183174,1.07626758,3891.2,3890.7,1.27847431]
[1734238183376,2.22563346,3891.1,3890.7,1.27847431]
[1734238183571,0.89025348,3891.0,3890.7,1.27847431]
[1734238183869,1.07626758,3891.2,3890.7,1.27847431]
[1734238184084,2.2256724,3891.1,3890.7,1.27847431]
[1734238184344,1.07626758,3891.2,3890.7,1.27847431]
[1734238184481,2.22535787,3891.1,3890.7,1.27847431]
[1734238184683,1.07626758,3891.2,3890.7,1.27847431]
[1734238184903,2.22537837,3891.1,3890.7,1.27847431]
[1734238185051,1.07626758,3891.2,3890.7,1.27847431]
[1734238185369,0.89002767,3891.1,3890.7,1.27847431]
[1734238185590,1.07626758,3891.2,3890.7,1.27847431]
[1734238185778,0.89003488,3891.1,3890.7,1.27847431]
[1734238185971,1.07626758,3891.2,3890.7,1.27847431]
[1734238186172,0.89003508,3891.1,3890.7,1.27847431]
[1734238186511,1.07626758,3891.2,3890.7,1.27847431]
[1734238186799,0.88991936,3891.1,3890.7,1.27847431]
[1734238187000,1.82896758,3891.3,3890.7,1.27847431]
[1734238187206,2.22479748,3891.2,3890.7,1.27847431]
[1734238187525,0.88991899,3891.1,3890.7,1.27847431]
[1734238187654,1.82896758,3891.3,3890.7,1.71409482]
[1734238187857,2.22456907,3891.2,3890.7,1.71409482]
[1734238188057,0.88982763,3891.1,3890.7,1.71409482]
[1734238188360,1.82896758,3891.3,3890.7,1.71409482]
[1734238188361,1.82896758,3891.3,3890.7,1.27847431]
[1734238188563,2.2243441,3891.2,3890.7,1.27847431]
[1734238188883,0.88973764,3891.1,3890.7,1.27847431]
[1734238189087,1.82896758,3891.3,3890.7,1.27847431]
[1734238189292,2.2241232,3891.2,3890.7,1.27847431]
[1734238189488,1.82896758,3891.3,3890.7,1.27847431]
[1734238189799,0.8896485,3891.2,3890.7,1.27847431]
[1734238189957,0.7527,3891.3,3890.7,1.27847431]
[1734238190383,0.88957968,3891.2,3890.7,1.27847431]
[1734238190558,0.7527,3891.3,3890.7,1.27847431]
[1734238190766,0.88958422,3891.2,3890.7,1.27847431]
[1734238190957,0.7527,3891.3,3890.7,2.26875382]
[1734238191177,0.7527,3891.3,3890.7,1.45705382]
[1734238191587,0.7527,3891.3,3890.7,1.27847431]
[1734238196667,0.8893187,3891.2,3890.7,1.27847431]
[1734238196872,0.7527,3891.3,3890.7,1.27847431]
[1734238197613,0.7527,3891.3,3891.0,1.27847431]
[1734238197982,7.75246758,3891.6,3891.0,2.09017431]
[1734238198213,0.88919682,3891.5,3891.0,2.29919174]
[1734238198389,7.75246758,3891.6,3891.0,2.29919174]
[1734238198585,0.88921426,3891.5,3891.0,2.09017431]
[1734238198768,7.75246758,3891.6,3891.0,2.09017431]
[1734238198972,0.88922009,3891.5,3891.0,2.09017431]
[1734238199174,7.75246758,3891.6,3891.0,0.8117]
[1734238199426,7.75246758,3891.6,3890.6,2.09017431]
[1734238199427,3.29936127,3891.5,3890.6,2.09017431]
[1734238199620,2.22309369,3891.4,3890.7,0.26090829]
[1734238199825,0.88923025,3891.3,3890.8,1.27847431]
[1734238200023,1.07626758,3891.5,3890.8,1.27847431]
[1734238200225,2.22318192,3891.4,3890.8,1.27847431]
[1734238200438,1.07626758,3891.5,3890.8,1.27847431]
[1734238200439,0.88927277,3891.3,3890.8,1.27847431]
[1734238200625,1.07626758,3891.5,3890.8,1.27847431]
[1734238200812,2.22318112,3891.4,3890.8,1.27847431]
[1734238201026,0.88926646,3891.3,3890.6,0.8117]
[1734238201232,1.65898746,3891.2,3890.7,1.27847431]
[1734238201407,0.7697,3891.2,3890.7,1.27847431]
[1734238202310,0.7697,3891.2,3890.7,1.7964166]
[1734238203104,0.76660703,3891.2,3890.7,1.7964166]
[1734238203905,0.76660703,3891.2,3890.7,1.27847431]
[1734238204108,0.76660703,3891.2,3890.4,1.79738294]
[1734238204540,0.88923141,3891.1,3890.4,1.79738294]
[1734238204753,0.76660703,3891.2,3890.4,1.79738294]
[1734238205046,0.88924165,3891.1,3890.4,1.79738294]
[1734238205225,0.76660703,3891.2,3890.6,1.27847431]
[1734238205835,1.07626758,3891.4,3890.9,1.27847431]
[1734238206073,0.12846126,3891.5,3890.9,1.27847431]
[1734238206074,1.12941895,3891.3,3890.9,1.27847431]
[1734238206257,1.20472884,3891.5,3890.9,1.27847431]
[1734238206424,1.12947475,3891.4,3890.9,1.27847431]
[1734238206628,7.75246758,3891.6,3890.9,1.74609574]
[1734238206930,2.46325086,3891.5,3890.9,1.74609574]
[1734238207133,1.12948482,3891.4,3890.9,1.74609574]
[1734238207346,0.24030746,3891.3,3890.9,1.74609574]
[1734238207651,0.12845359,3891.5,3890.9,1.74609574]
[1734238207815,1.12958356,3891.4,3890.9,1.74609574]
[1734238208015,0.12845359,3891.5,3890.9,1.74609574]
[1734238208343,2.59185628,3891.4,3890.9,1.74609574]
[1734238208568,1.07626758,3891.5,3890.9,1.74609574]
[1734238208569,0.24038617,3891.3,3890.9,1.74609574]
[1734238208864,0.24038617,3891.2,3890.9,1.74609574]
[1734238209142,1.07626758,3891.5,3890.9,1.74609574]
[1734238209372,2.59220892,3891.4,3890.9,1.74609574]
[1734238209582,0.36911236,3891.3,3891.1,2.56995]
[1734238209715,6.6762,3891.6,3891.3,0.8218]
[1734238211913,6.6762,3891.6,3891.0,1.27847431]
[1734238212528,6.6762,3891.6,3891.0,1.79928676]
[1734238214035,6.6762,3891.6,3891.0,0.52081245]
[1734238214357,0.88942297,3891.5,3890.8,0.8218]
[1734238214543,3.29996497,3891.4,3890.8,0.8218]
[1734238214857,0.88949868,3891.3,3890.9,1.27847431]
[1734238215160,1.07626758,3891.5,3890.9,1.27847431]
[1734238215319,0.8895378,3891.4,3890.9,1.27847431]
[1734238215526,7.75246758,3891.6,3890.9,1.27847431]
[1734238215715,0.88953217,3891.5,3890.9,1.27847431]
[1734238215958,7.75246758,3891.6,3890.9,1.27847431]
[1734238215959,6.6762,3891.6,3890.9,1.74551474]
[1734238216126,0.88951332,3891.5,3890.9,1.74551474]
[1734238216330,6.6762,3891.6,3890.9,1.74551474]
[1734238216538,0.88960668,3891.5,3890.9,1.74551474]
[1734238216739,0.88961434,3891.4,3890.9,1.74551474]
[1734238216969,7.75246758,3891.6,3890.9,1.74551474]
[1734238217153,3.30032048,3891.5,3890.9,1.27847431]
[1734238217357,0.88962116,3891.4,3890.9,1.27847431]
[1734238217660,1.07626758,3891.5,3890.9,1.27847431]
[1734238217867,0.88972009,3891.4,3890.9,1.27847431]
[1734238218028,1.07626758,3891.5,3890.9,1.27847431]
[1734238218233,0.88979124,3891.4,3890.9,1.27847431]
[1734238218433,7.75246758,3891.6,3890.9,1.27847431]
[1734238218630,2.22452936,3891.5,3890.9,1.27847431]
[1734238218847,7.75246758,3891.6,3890.9,1.74552874]
[1734238219047,2.224495,3891.5,3890.9,1.74552874]
[1734238219248,7.75246758,3891.6,3890.9,1.74552874]
[1734238219447,3.3010066,3891.5,3890.8,0.8218]
[1734238219762,2.22473902,3891.4,3890.8,0.8218]
[1734238220061,1.07626758,3891.5,3890.8,0.8218]
[1734238220366,3.30128261,3891.4,3890.8,0.8218]
[1734238220583,2.22507394,3891.3,3890.8,0.8218]
[1734238220747,1.07626758,3891.4,3890.9,0.46705443]
[1734238221098,2.2252047,3891.3,3890.9,0.46705443]
[1734238221265,0.89008188,3891.2,3890.9,0.46705443]
[1734238221429,1.07626758,3891.4,3890.9,0.46705443]
[1734238221724,2.22553466,3891.3,3890.9,0.46705443]
[1734238221953,0.89021386,3891.2,3891.0,0.25673287]
[1734238222151,1.07626758,3891.3,3891.0,0.25673287]
[1734238222352,0.89035152,3891.2,3891.0,0.25673287]
[1734238222629,1.07626758,3891.3,3891.0,0.25673287]
[1734238222831,0.890371,3891.2,3891.0,0.25673287]
[1734238223045,1.07626758,3891.3,3891.0,0.25673287]
[1734238223236,2.22632226,3891.2,3891.0,0.25673287]
[1734238223423,0.890529,3891.1,3891.0,0.25673287]
[1734238223632,1.07626758,3891.3,3891.0,0.25673287]
[1734238223830,2.22635477,3891.2,3891.0,0.25673287]
[1734238224183,0.89073315,3891.1,3891.0,0.25673287]
[1734238224741,1.07626758,3891.3,3891.0,1.53520718]
[1734238224958,1.07626758,3891.4,3891.1,0.28240616]
[1734238225132,2.22720222,3891.3,3891.1,0.28240616]
[1734238225336,0.89073645,3891.2,3891.1,0.28240616]
[1734238225842,0.89073645,3891.2,3891.0,0.25673287]
[1734238226051,0.89100401,3891.1,3890.8,0.8218]
[1734238226375,1.07626758,3891.3,3890.8,2.10027431]
[1734238226534,3.30375763,3891.2,3890.8,2.10027431]
[1734238226733,0.89099602,3891.1,3890.8,2.10027431]
[1734238226966,1.07626758,3891.2,3890.8,2.61847309]
[1734238227165,0.89100894,3891.1,3890.8,2.61847309]
[1734238227466,1.07626758,3891.2,3890.8,2.61847309]
[1734238227643,0.89101695,3891.1,3890.8,2.61847309]
[1734238227846,1.07626758,3891.2,3890.8,2.61847309]
[1734238228149,0.89101616,3891.1,3890.9,0.26184731]
[1734238228454,1.07626758,3891.2,3890.9,0.26184731]
[1734238228647,0.89101854,3891.1,3890.9,0.26184731]
[1734238228846,1.07626758,3891.2,3890.9,0.26184731]
[1734238229171,0.89101847,3891.1,3890.9,0.26184731]
[1734238229368,1.07626758,3891.2,3890.9,0.26184731]
[1734238229667,0.89102262,3891.1,3890.9,0.26184731]
[1734238229834,1.07626758,3891.2,3890.9,0.26184731]
[1734238230147,0.89102099,3891.1,3890.9,0.26184731]
[1734238230353,1.07626758,3891.2,3891.0,0.28803204]
[1734238230536,0.89101988,3891.1,3891.0,0.28803204]
[1734238231598,1.07626758,3891.3,3891.0,0.28803204]
[1734238231739,0.89103014,3891.2,3891.0,0.28803204]
[1734238232089,1.07626758,3891.4,3891.1,0.28976928]
[1734238232382,2.22757953,3891.3,3891.1,0.05093864]
[1734238232584,0.89103181,3891.2,3890.8,5.10027431]
[1734238232731,1.07626758,3891.3,3890.8,5.10027431]
[1734238232932,1.60970117,3891.5,3890.8,5.10027431]
[1734238232933,0.89102689,3891.2,3890.8,5.10027431]
[1734238233172,1.07626758,3891.5,3891.2,0.8028]
[1734238233378,0.89097405,3891.4,3891.3,0.51543391]
[1734238233584,6.6762,3891.6,3891.3,7.36372822]
[1734238233915,6.6762,3891.6,3891.5,1.27847431]
[1734238234262,6.6762,3891.6,3891.5,1.32871975]
[1734238234579,6.6762,3891.6,3891.5,2.14535677]
[1734238237296,6.6762,3891.6,3891.5,2.94815677]
[1734238239054,6.6762,3891.6,3891.5,0.86688246]
[1734238239247,6.6762,3891.6,3891.5,0.05024544]
[1734238259825,6.6762,3891.6,3891.5,5.15161975]
[1734238260197,4.978913,3891.6,3891.5,5.82455026]
[1734238260422,4.193103,3891.6,3891.5,5.82455026]
[1734238260725,1.41304359,3891.6,3891.5,6.88896137]
[1734238260908,1.41304359,3891.6,3891.5,7.98287148]
[1734238261111,1.41304359,3891.6,3891.5,5.87748422]
[1734238262122,3.59e-06,3891.6,3891.5,5.33312306]
[1734238262327,0.88907186,3893.0,3892.4,2.56905]
[1734238262487,1.07626758,3893.2,3892.7,1.27847431]
[1734238262696,2.22264028,3893.1,3892.7,1.27847431]
[1734238262921,1.07626758,3893.2,3892.7,1.27847431]
[1734238263094,0.88904157,3893.1,3892.8,0.04778291]
[1734238263432,1.88646758,3893.3,3892.9,1.27847431]
[1734238263600,0.88880484,3893.2,3892.9,1.32627224]
[1734238263903,0.8102,3893.3,3892.9,1.27847431]
[1734238264429,0.8102,3893.3,3893.0,0.04778778]
[1734238264630,6.4266,3893.2,3893.0,0.04778778]
[1734238265892,6.4266,3893.2,3892.7,2.05297431]
[1734238266118,6.4266,3893.2,3893.1,0.04777764]
[1734238266327,6.4266,3893.2,3892.7,4.62185431]
[1734238266328,7.15028,3893.2,3892.7,2.56888]
[1734238266493,7.15028,3893.2,3893.1,0.04777764]
[1734238266697,0.7553,3893.1,3892.4,2.56908]
[1734238267090,0.7553,3893.1,3892.5,2.56902]
[1734238267301,0.7553,3893.1,3892.7,1.27847431]
[1734238267662,6.4266,3893.2,3893.0,2.56869]
[1734238267807,6.4266,3893.2,3893.1,1.27847431]
[1734238268815,6.4266,3893.2,3893.1,1.32573007]
[1734238269211,6.4266,3893.2,3893.1,2.11753007]
[1734238270433,6.4266,3893.2,3893.1,2.58615208]
[1734238273328,6.4266,3893.2,3893.1,2.11753007]
[1734238275548,6.4266,3893.2,3893.1,0.04725576]
[1734238275549,7.2084,3893.2,3893.1,0.04725576]
[1734238275841,7.2084,3893.2,3892.6,1.27847431]
[1734238276024,7.2084,3893.2,3893.1,0.04621664]
[1734238276346,7.2084,3893.2,3892.6,1.27847431]
[1734238276347,7.92924,3893.2,3892.6,1.27847431]
[1734238276661,6.4266,3893.2,3893.0,1.27847431]
[1734238277003,6.4266,3893.2,3893.1,0.0462288]
[1734238278729,6.39858545,3893.2,3893.1,0.0462288]
[1734238281329,0.7818,3893.6,3893.1,0.0462288]
[1734238283041,0.7818,3893.6,3893.1,2.6148688]
[1734238284738,0.7818,3893.6,3893.1,0.0462288]
[1734238284999,0.7818,3893.6,3892.9,3.0]
[1734238285350,0.7818,3893.6,3893.0,0.04596141]
[1734238285909,0.7818,3893.6,3892.8,1.27847431]
[1734238286115,0.7818,3893.6,3893.1,0.04595127]
[1734238286338,0.7818,3893.6,3892.8,1.27847431]
[1734238286533,0.7818,3893.6,3893.2,0.04594112]
[1734238286736,0.7818,3893.6,3892.8,1.27847431]
[1734238287046,7.2074,3893.6,3892.8,2.09301717]
[1734238287209,7.2074,3893.6,3892.9,0.04597156]
[1734238287853,0.8281,3893.5,3892.3,1.27847431]
[1734238288018,0.8281,3893.5,3893.0,0.04588238]
[1734238288215,0.8281,3893.3,3892.5,0.51591468]
[1734238288448,0.8281,3893.3,3892.6,0.04592297]
[1734238288954,0.8281,3893.3,3892.3,1.27847431]
[1734238289128,0.8281,3893.3,3892.7,0.04595233]
[1734238289324,0.8281,3893.3,3892.5,4.27847431]
[1734238289827,0.8281,3893.3,3892.6,0.04596248]
[1734238290657,1.6516903,3893.3,3892.6,0.04596248]
[1734238295284,0.8281,3893.3,3892.7,1.27847431]
[1734238295632,0.8281,3893.3,3892.8,0.04630916]
[1734238295836,0.8281,3893.3,3892.7,1.27847431]
[1734238296341,0.8281,3893.3,3892.8,0.0463148]
[1734238296658,0.8281,3893.3,3892.7,1.27847431]
[1734238296824,0.8281,3893.3,3892.9,0.0463103]
[1734238297024,0.8281,3893.3,3892.9,1.27847431]
[1734238297226,0.8281,3893.3,3893.0,0.04630016]
[1734238299257,0.8281,3893.3,3892.6,3.84742431]
[1734238299858,0.8281,3893.3,3892.7,0.0463306]
[1734238300040,0.8281,3893.3,3892.7,2.6152006]
[1734238300238,0.8281,3893.3,3892.8,0.7546]
[1734238300762,0.8281,3893.3,3892.9,0.04628772]
[1734238301119,0.8281,3893.3,3892.8,0.7546]
[1734238301437,0.8281,3893.3,3892.9,0.04625384]
[1734238301922,0.8281,3893.3,3892.8,0.7546]
[1734238302125,0.8281,3893.3,3893.0,0.0462437]
[1734238302325,0.8281,3893.3,3892.8,0.7546]
[1734238302564,1.55347,3893.3,3893.1,0.04623355]
[1734238302766,0.7693,3893.2,3892.4,0.54944462]
[1734238303466,0.7693,3893.2,3892.5,0.04629443]
[1734238304662,0.88948253,3893.1,3892.5,0.04629443]
[1734238304846,1.84556758,3893.2,3892.5,0.04629443]
[1734238305048,0.88948267,3893.1,3892.5,0.04629443]
[1734238305361,1.84556758,3893.2,3892.5,0.04629443]
[1734238305560,3.30081014,3893.1,3892.5,0.04629443]
[1734238305728,2.22454256,3893.0,3892.5,0.04629443]
[1734238305931,1.07626758,3893.1,3892.5,0.04629443]
[1734238306128,3.30133836,3893.0,3892.5,0.04629443]
[1734238306462,0.89002831,3892.9,3892.5,0.04629443]
[1734238306678,1.07626758,3893.0,3892.5,0.04629443]
[1734238306863,2.22516853,3892.9,3892.5,0.04629443]
[1734238307064,1.07626758,3893.0,3892.5,0.04629443]
[1734238307270,2.22520469,3892.9,3892.5,0.04629443]
[1734238307577,0.7643,3892.7,3892.5,0.04629443]
[1734238307772,4.06581888,3892.6,3892.5,0.04629443]
[1734238307970,0.7643,3892.5,3892.4,0.0421]
[1734238308169,2.9895513,3892.5,3892.4,0.0421]
[1734238309144,4.06564211,3892.5,3892.4,0.0421]
[1734238309450,5.02580258,3892.5,3892.4,0.0421]
[1734238310591,5.02453629,3892.5,3892.4,0.0421]
[1734238311504,3.94801488,3892.5,3892.4,0.0421]
[1734238313684,5.02410569,3892.5,3892.4,0.0421]
[1734238313894,4.06394522,3892.5,3892.4,0.0421]
[1734238315971,4.06267707,3892.5,3892.4,0.0421]
[1734238317246,2.98658626,3892.5,3892.4,0.0421]
[1734238317450,4.06267707,3892.5,3892.4,0.0421]
[1734238317747,3.98849599,3892.5,3892.4,0.0421]
[1734238317941,5.0645868,3892.5,3892.4,0.0421]
[1734238318177,3.98849599,3892.5,3892.4,0.0421]
[1734238320084,2.65512423,3892.5,3892.4,0.0421]
[1734238320285,2.65482876,3892.5,3892.4,0.0421]
[1734238320806,1.65291903,3892.5,3892.4,0.0421]
[1734238323170,1.65285717,3892.5,3892.4,0.0421]
[1734238324504,2.98567041,3892.5,3892.4,0.0421]
[1734238326007,1.65285717,3892.5,3892.4,0.0421]
[1734238327707,1.65287102,3892.5,3892.4,0.0421]
[1734238330084,2.98607004,3892.5,3892.4,0.0421]
[1734238330280,2.22176478,3892.5,3892.4,0.0421]
[1734238330587,1.07609081,3893.0,3892.4,0.91036931]
[1734238330783,1.07609081,3893.1,3892.5,0.21888436]
[1734238330987,2.22175715,3893.0,3892.5,0.04442125]
[1734238331253,1.07609081,3893.1,3892.4,0.866]
[1734238331532,0.88878316,3893.0,3892.4,0.866]
[1734238331775,1.07609081,3893.1,3892.5,0.04441561]
[1734238331880,0.88878241,3893.0,3892.5,0.04441561]
[1734238332087,0.88878393,3892.9,3892.5,0.04441561]
[1734238332344,2.22211634,3892.8,3892.4,0.0421]
[1734238332632,2.22211634,3892.7,3892.4,0.0421]
[1734238332821,2.22226042,3892.6,3892.4,0.0421]
[1734238333031,2.98266776,3892.5,3892.4,0.0421]
[1734238333381,2.94862712,3892.5,3892.4,0.0421]
[1734238336238,2.22226776,3892.5,3892.4,0.0421]
[1734238336544,2.22273557,3892.5,3892.4,0.0421]
[1734238338941,3.29882638,3892.5,3892.4,0.0421]
[1734238340450,2.22286947,3892.5,3892.4,0.0421]
[1734238340781,2.22294283,3892.5,3892.4,0.0421]
[1734238341334,2.79480631,3892.5,3892.4,0.0421]
[1734238341639,4.70349712,3892.5,3892.4,0.0421]
[1734238343237,3.62740631,3892.5,3892.4,0.0421]
[1734238344324,3.62740631,3892.5,3891.7,0.8202]
[1734238344325,5.23710748,3892.5,3891.7,0.8202]
[1734238344509,1.07573982,3892.3,3891.7,0.8202]
[1734238344709,3.29868265,3892.2,3891.7,0.8202]
[1734238344910,0.88917713,3892.1,3891.7,0.8202]
[1734238345110,1.07573982,3892.2,3891.7,0.8202]
[1734238345315,0.8895668,3892.1,3891.7,0.8202]
[1734238345507,1.07573982,3892.3,3891.7,0.8202]
[1734238345705,2.22389885,3892.2,3891.7,0.8202]
[1734238345906,1.07573982,3892.3,3891.7,0.8202]
[1734238346138,2.22384902,3892.2,3891.7,0.8202]
[1734238346336,0.88953961,3892.1,3891.7,0.8202]
[1734238346543,1.07573982,3892.3,3891.7,0.8202]
[1734238346746,2.22426711,3892.2,3891.7,0.8202]
[1734238346897,0.88970684,3892.1,3891.7,0.8202]
[1734238347092,1.07573982,3892.2,3891.7,0.8202]
[1734238347437,0.88989824,3892.1,3891.7,0.8202]
[1734238347651,1.07573982,3892.2,3891.7,0.8202]
[1734238347789,0.88990023,3892.1,3891.7,0.8202]
[1734238347997,1.07573982,3892.2,3891.7,0.8202]
[1734238348254,2.22507474,3892.1,3891.7,0.8202]
[1734238348454,0.8899002,3892.0,3891.7,0.8202]
[1734238348656,1.07573982,3892.1,3891.5,0.7738]
[1734238348793,0.89012155,3892.0,3891.5,0.7738]
[1734238348992,0.8901562,3891.9,3891.5,0.7738]
[1734238349239,0.89031234,3891.8,3891.5,0.7738]
[1734238349454,1.07573982,3891.9,3891.5,0.7738]
[1734238349592,3.74169132,3891.8,3891.2,0.7659]
[1734238349954,1.07573982,3891.5,3890.9,0.7659]
[1734238350258,3.30146599,3891.4,3890.9,0.7659]
[1734238350391,2.22572617,3891.3,3890.9,0.7659]
[1734238350600,2.22579242,3891.2,3890.5,0.7659]
[1734238350796,3.30158388,3891.1,3890.5,0.7659]
[1734238351100,4.75332789,3891.3,3890.5,0.7659]
[1734238351101,3.30158712,3891.0,3890.6,0.04528041]
[1734238351292,0.89029047,3890.9,3890.5,0.7659]
[1734238351542,1.07573982,3891.0,3890.7,0.04552434]
[1734238351737,2.22524773,3890.9,3890.5,0.7659]
[1734238351907,1.07573982,3891.0,3890.8,0.04551418]
[1734238352254,0.89009844,3890.9,3890.5,0.7659]
[1734238352540,1.07573982,3891.0,3890.6,0.04568372]
[1734238352747,0.88980189,3890.9,3890.5,0.7659]
[1734238352907,1.07573982,3891.0,3890.7,0.04567356]
[1734238353131,0.88980121,3890.9,3890.5,0.7659]
[1734238353315,1.07573982,3891.1,3890.8,0.0456634]
[1734238353520,2.22391335,3891.0,3890.5,0.7659]
[1734238353729,1.07573982,3891.1,3890.9,0.04565518]
[1734238353924,2.22391498,3891.0,3890.5,0.7659]
[1734238354152,1.07573982,3891.1,3891.0,0.04564502]
[1734238354393,0.88926768,3891.1,3890.5,0.7659]
[1734238354644,0.88926768,3891.0,3890.5,2.04437431]
[1734238354904,1.07573982,3891.2,3890.5,2.04437431]
[1734238355057,0.88926869,3891.1,3890.5,2.04437431]
[1734238355262,1.07573982,3891.3,3890.5,2.04437431]
[1734238355463,2.22262327,3891.2,3890.5,2.04437431]
[1734238355669,1.68390492,3891.3,3890.5,2.04437431]
[1734238355814,2.2226209,3891.2,3890.5,2.04437431]
[1734238356013,1.68390492,3891.3,3890.5,2.04437431]
[1734238356210,0.88904848,3891.2,3890.5,2.04437431]
[1734238358016,0.6081651,3891.3,3890.5,2.04437431]
[1734238360958,1.07573982,3891.5,3890.7,1.27847431]
[1734238361269,2.14626823,3891.8,3890.8,0.7557]
[1734238361270,1.07573982,3891.7,3890.8,0.7557]
[1734238361465,3.29617372,3891.7,3890.8,0.80136534]
[1734238361657,3.29617372,3891.7,3890.8,0.7557]
[1734238362467,0.88812002,3891.6,3890.8,0.7557]
[1734238362668,1.07573982,3891.7,3890.8,0.7557]
[1734238362965,1.9638626,3891.7,3890.9,0.04565518]
[1734238363178,3.29604677,3891.7,3890.9,0.51066613]
[1734238363372,1.07573982,3891.9,3891.0,2.03417431]
[1734238363961,1.96378971,3891.9,3891.0,2.03417431]
[1734238364168,0.88804989,3891.8,3891.0,2.03417431]
[1734238364364,1.07573982,3891.9,3891.0,0.7557]
[1734238364567,0.88801655,3891.8,3891.1,0.04563487]
[1734238364731,1.07573982,3892.0,3891.1,0.51062279]
[1734238364931,0.88800478,3891.9,3891.1,0.51062279]
[1734238365164,0.88800478,3891.8,3891.1,0.04563487]
[1734238365479,1.07573982,3892.0,3891.1,0.04563487]
[1734238365781,0.88799965,3891.9,3891.1,0.04563487]
[1734238366065,1.96373947,3891.9,3891.1,0.04563487]
[1734238366842,2.22006813,3891.8,3891.1,0.04563487]
[1734238367170,0.88802725,3891.7,3891.0,0.7557]
[1734238367342,1.07573982,3891.9,3891.2,0.04575458]
[1734238367526,0.88802646,3891.8,3891.0,0.7557]
[1734238367892,0.88802646,3891.8,3891.3,0.04574442]
[1734238368092,1.96376628,3891.8,3891.0,0.7557]
[1734238368377,0.88802646,3891.7,3891.4,0.04568593]
[1734238368598,1.07573982,3891.9,3891.0,0.7557]
[1734238368804,0.88802865,3891.8,3891.0,1.21612443]
[1734238368953,0.88802865,3891.8,3891.1,0.04571639]
[1734238369480,2.22007163,3891.8,3891.1,0.04571639]
[1734238369681,0.88802865,3891.7,3891.1,0.04571639]
[1734238369838,1.07573982,3891.9,3891.1,0.04571639]
[1734238370041,0.88802626,3891.8,3891.1,0.04571639]
[1734238370442,2.53328675,3891.8,3891.1,0.04571639]
[1734238370687,0.88805304,3891.7,3891.1,0.04571639]
[1734238371086,3.37297,3891.6,3891.1,0.04571639]
[1734238371286,3.29591101,3891.5,3890.6,0.784]
[1734238371585,2.22015748,3891.4,3890.7,0.04422684]
[1734238371781,1.55494972,3891.3,3890.7,0.04422684]
[1734238371942,0.66688673,3891.3,3890.7,0.04422684]
[1734238372146,1.69140564,3891.2,3890.7,0.04422684]
[1734238372345,0.8033,3891.2,3890.6,0.784]
[1734238372586,0.88805414,3891.1,3890.8,0.04426018]
[1734238372889,0.8033,3891.2,3890.1,0.784]
[1734238372890,0.60038307,3891.0,3890.1,0.784]
[1734238373247,0.60038307,3891.0,3890.2,0.04444539]
[1734238375649,0.1920831,3890.9,3890.2,0.04444539]
[1734238375953,0.1920831,3890.8,3890.2,0.04444539]
[1734238376150,0.1920831,3890.7,3890.2,0.04444539]
[1734238376372,0.1920831,3890.6,3890.2,0.04444539]
[1734238376583,0.1920831,3890.5,3890.2,0.04444539]
[1734238376786,0.1920831,3890.4,3890.2,0.04444539]
[1734238376987,0.1920831,3890.3,3890.2,0.04444539]
[1734238377996,3.15809138,3890.3,3890.2,0.04444539]
[1734238378153,2.52892621,3890.3,3889.4,0.7989]
[1734238378350,0.19220057,3890.2,3889.4,0.7989]
[1734238378550,0.19220057,3890.1,3889.4,0.7989]
[1734238378786,1.64089224,3890.3,3889.4,0.7989]
[1734238378787,0.19220057,3890.0,3889.4,0.7989]
[1734238379096,0.19220057,3889.9,3889.4,0.7989]
[1734238379253,0.19220057,3889.8,3889.4,0.7989]
[1734238379454,0.19220057,3889.7,3889.4,0.7989]
[1734238379694,0.19220057,3889.6,3889.4,0.7989]
[1734238379990,0.19220057,3889.5,3889.4,0.7989]
[1734238380228,0.7995,3890.3,3889.4,0.7989]
[1734238380431,0.19214504,3890.2,3889.4,0.7989]
[1734238380639,0.19214504,3890.1,3889.4,0.7989]
[1734238380821,0.19214504,3890.0,3889.4,0.7989]
[1734238381009,0.19214504,3889.9,3889.4,0.7989]
[1734238381228,0.19214504,3889.8,3889.4,0.7989]
[1734238381406,0.19214504,3889.7,3889.4,0.7989]
[1734238381631,0.19214504,3889.6,3889.4,0.7989]
[1734238381835,1.53352483,3890.3,3889.4,0.7989]
[1734238382032,0.45299936,3890.2,3889.4,0.7989]
[1734238382206,0.19207289,3890.1,3889.4,0.7989]
[1734238382394,0.19207289,3890.0,3889.4,0.7989]
[1734238382600,0.19207289,3889.9,3889.4,0.7989]
[1734238382825,0.19207289,3889.8,3889.4,0.7989]
[1734238383014,0.19207289,3889.7,3889.4,0.7989]
[1734238383196,0.26092647,3890.2,3889.4,0.7989]
[1734238383404,0.19196075,3890.1,3889.4,0.7989]
[1734238383718,0.19196075,3890.0,3889.4,0.7989]
[1734238383942,0.19196075,3889.9,3889.4,0.7989]
[1734238384145,0.19196075,3889.8,3889.4,0.7989]
[1734238384318,0.19196075,3889.7,3889.5,0.04487851]
[1734238384518,0.19196075,3889.6,3889.5,0.04487851]
[1734238385425,0.26092647,3890.2,3889.5,0.04487851]
[1734238385624,0.1918669,3890.1,3889.5,0.04487851]
[1734238385937,0.1918669,3890.0,3889.5,0.04487851]
[1734238386139,0.1918669,3889.9,3889.5,0.04487851]
[1734238386445,0.1918669,3889.8,3889.5,0.04487851]
[1734238386652,0.19182633,3889.7,3889.5,0.04487851]
[1734238386821,0.13807955,3890.1,3889.5,0.04487851]
[1734238387016,0.19182691,3890.0,3889.5,0.04487851]
[1734238387216,0.19182691,3889.9,3889.5,1.32335282]
[1734238387592,0.12850313,3890.7,3889.7,2.06207431]
[1734238387720,0.817,3890.9,3889.7,2.06207431]
[1734238387922,0.817,3890.9,3889.8,0.04586188]
[1734238388223,1.08945873,3890.8,3889.8,0.04586188]
[1734238388422,0.2021243,3890.8,3889.9,0.7836]
[1734238388837,0.2021243,3890.8,3890.0,0.04584155]
[1734238389752,1.20424295,3891.0,3890.1,0.7721]
[1734238390085,0.7796,3891.1,3890.1,0.81793139]
[1734238391938,0.65479321,3891.2,3890.1,0.81793139]
[1734238392145,0.12850313,3891.2,3890.2,0.7721]
[1734238392363,2.35421413,3891.3,3890.2,0.7721]